bitfinex/quotes_ETHUSD_20251010
["timestamp","ask_amount","ask_price","bid_price","bid_amount"]
[1760131194613,1.44301324,3536.5,3523.5,0.23834584]
[1760131194819,1.41282627,3536.5,3523.3,0.45272199]
[1760131195018,1.4910153,3537.0,3520.0,47.44891475]
[1760131195177,1.41674511,3537.0,3520.0,30.11702571]
[1760131195378,1.46696499,3536.8,3520.1,0.80092042]
[1760131195678,1.40522372,3550.7,3520.1,0.3009854]
[1760131195986,1.46221315,3550.7,3520.2,0.73015639]
[1760131196182,1.40336089,3550.5,3520.3,0.35878222]
[1760131196493,7.06036089,3550.5,3523.9,4.611]
[1760131196681,7.06036089,3550.5,3520.4,2.74377777]
[1760131196682,5.657,3550.5,3526.1,1.40774479]
[1760131197025,5.657,3550.5,3526.3,1.40706704]
[1760131197026,4.00873077,3550.5,3526.3,1.40706704]
[1760131197177,3.68317333,3550.5,3531.8,1.42552974]
[1760131197383,1.43793964,3550.4,3531.9,1.32530558]
[1760131197610,1.43793964,3550.4,3524.7,0.00204]
[1760131197611,1.46634529,3550.2,3532.0,0.14574813]
[1760131197798,0.57724264,3550.1,3524.7,0.00204]
[1760131197998,0.14574813,3528.8,3524.8,0.60632158]
[1760131198207,2.15751947,3550.5,3541.9,0.14574813]
[1760131198208,0.22192747,3547.5,3541.9,0.14574813]
[1760131198378,0.22192747,3547.5,3531.3,0.00853]
[1760131198379,0.689393,3547.4,3531.3,0.00853]
[1760131198580,0.689393,3547.4,3531.4,0.17190647]
[1760131198581,0.48487124,3547.3,3531.4,0.17190647]
[1760131198786,0.3176546,3531.2,3520.0,33.43850407]
[1760131199014,0.36108025,3547.2,3520.0,32.66928883]
[1760131199318,2.393,3537.9,3520.0,32.66928883]
[1760131199614,2.392,3529.1,3509.2,0.49343124]
[1760131199800,2.392,3529.1,3505.9,0.24617]
[1760131199801,0.58505648,3529.0,3500.0,31.64388558]
[1760131199999,3.54141085,3529.0,3501.2,1.4307377]
[1760131200201,2.40409262,3529.0,3506.2,1.45213365]
[1760131200414,0.58674914,3528.9,3506.4,1.48269151]
[1760131200615,0.70477315,3528.8,3506.1,1.49750067]
[1760131200780,1.08245199,3528.7,3506.1,1.49750067]
[1760131200985,0.11358043,3528.6,3520.3,1.23]
[1760131201191,1.33670199,3528.5,3500.1,1.44249417]
[1760131201394,0.23673945,3528.4,3500.1,1.44249417]
[1760131201592,0.67194408,3528.3,3500.1,1.44249417]
[1760131201815,0.04953151,3528.2,3500.3,1.42347575]
[1760131202122,0.59984608,3528.4,3500.5,1.40284421]
[1760131202291,0.3930994,3528.1,3524.7,1.21292884]
[1760131202493,0.24638,3528.4,3524.7,0.83465604]
[1760131202494,0.35988037,3528.3,3524.7,0.83465604]
[1760131202728,0.17602121,3518.9,3518.8,1.45453156]
[1760131202931,0.18786953,3528.2,3509.0,1.47757057]
[1760131203227,0.330339,3528.2,3500.1,1.44249417]
[1760131203388,0.20915319,3506.7,3500.1,1.44249405]
[1760131203584,0.20915319,3506.7,3500.0,31.61115804]
[1760131203585,0.11584931,3506.6,3500.0,31.61115804]
[1760131203787,2.27336878,3506.6,3500.0,31.61115804]
[1760131203990,2.27336878,3506.6,3500.1,1.40459899]
[1760131204215,2.27336878,3506.6,3500.1,1.4965751]
[1760131204427,0.11318135,3506.5,3500.0,31.43684117]
[1760131204644,2.27070082,3506.5,3500.0,30.8891951]
[1760131204843,0.11358043,3506.4,3500.0,30.8891951]
[1760131204996,0.73573137,3506.3,3506.1,1.10768261]
[1760131205347,1.92247197,3506.3,3506.1,0.98120563]
[1760131205545,0.81783953,3506.4,3506.2,1.01754138]
[1760131205844,0.81783953,3506.4,3506.1,0.64973573]
[1760131205845,0.19995662,3506.3,3506.1,0.06766997]
[1760131206038,3.50293851,3506.3,3500.0,30.8760554]
[1760131206195,0.06766997,3505.9,3500.0,30.63142062]
[1760131206401,0.19288157,3506.3,3500.1,0.24298783]
[1760131206701,0.16019598,3517.5,3500.0,30.63142062]
[1760131206899,0.16019598,3517.5,3500.0,30.15297913]
[1760131207108,0.19542981,3517.4,3500.0,30.15297913]
[1760131207298,1.4408752,3517.3,3500.0,29.65691133]
[1760131207518,0.54771322,3517.2,3500.0,28.7275342]
[1760131207722,6.63880686,3517.2,3506.1,0.08153734]
[1760131207907,6.63880686,3517.2,3500.0,28.23796215]
[1760131207908,0.36265515,3517.1,3500.0,28.20802733]
[1760131208110,6.08124643,3517.1,3500.0,28.20802733]
[1760131208316,10.14612603,3517.1,3500.1,0.26567551]
[1760131208504,0.184,3500.2,3500.0,28.11964534]
[1760131208703,9.70506838,3500.2,3500.0,28.11964534]
[1760131208936,9.54810885,3500.2,3500.0,27.86964534]
[1760131209104,9.32776656,3500.2,3500.0,28.87269179]
[1760131209307,9.15011513,3500.2,3500.0,28.87269179]
[1760131209540,8.75361145,3500.2,3500.0,28.87269179]
[1760131209744,8.35468147,3500.2,3500.0,28.87269179]
[1760131209939,8.35468147,3500.2,3500.1,0.22641089]
[1760131210144,7.7839987,3500.2,3500.1,0.38533746]
[1760131210327,7.54001659,3500.2,3500.1,1.22570281]
[1760131210529,7.54001659,3500.2,3500.1,1.20529049]
[1760131210729,6.70830136,3500.2,3500.1,1.11216656]
[1760131210915,6.03025798,3500.2,3500.1,0.2621405]
[1760131211121,6.03025798,3500.2,3500.1,0.001]
[1760131211122,5.59230002,3500.2,3500.1,0.001]
[1760131211405,6.12036982,3500.2,3500.0,26.34145914]
[1760131211647,4.59074788,3500.2,3500.0,26.34145914]
[1760131211809,0.79888874,3500.1,3500.0,26.7725704]
[1760131212002,3.988015,3500.1,3500.0,26.7725704]
[1760131212204,3.65003989,3500.1,3500.0,27.16610199]
[1760131212538,3.65003989,3500.1,3500.0,26.39312776]
[1760131212539,2.81489148,3500.1,3500.0,26.39312776]
[1760131212711,2.15044095,3500.1,3500.0,26.39312776]
[1760131212914,1.44606856,3500.1,3500.0,26.39312776]
[1760131213233,1.73844692,3500.1,3500.0,24.17202046]
[1760131213538,3.01263714,3500.1,3500.0,25.40202046]
[1760131213746,0.39503486,3500.1,3500.0,25.40202046]
[1760131213916,0.16019598,3517.5,3500.0,25.40202046]
[1760131214117,0.34158286,3517.4,3500.0,25.40202046]
[1760131214332,0.16019598,3517.5,3500.0,25.30661715]
[1760131214540,5.86019598,3517.5,3500.0,23.3060736]
[1760131214851,5.86019598,3517.5,3500.0,22.09886835]
[1760131215034,0.35960916,3517.4,3500.0,22.09886835]
[1760131215235,5.7,3517.4,3500.1,0.41854693]
[1760131215547,7.13663875,3517.4,3500.0,21.77208021]
[1760131215945,7.13663875,3517.4,3500.1,0.38527193]
[1760131216124,5.7,3517.4,3500.0,22.95216467]
[1760131216325,0.54383851,3517.3,3500.0,17.9162]
[1760131216524,5.98045332,3517.3,3500.0,16.42919208]
[1760131216752,5.98045332,3517.3,3505.0,999.66526992]
[1760131216753,5.34316621,3517.3,3505.0,999.66526992]
[1760131216959,5.34316621,3517.3,3505.0,999.388]
[1760131217169,5.34316621,3517.3,3505.0,999.37467265]
[1760131217463,1.4483703,3517.2,3505.0,1000.60467265]
[1760131217662,0.30312202,3517.1,3505.0,1000.60467265]
[1760131217866,1.44316277,3517.0,3505.0,1000.60467265]
[1760131218025,6.78632898,3517.0,3505.0,1000.60467265]
[1760131218225,1.82971031,3516.9,3505.0,1000.60467265]
[1760131218425,2.1404823,3516.8,3505.0,999.11688927]
[1760131218642,7.03887581,3516.8,3505.0,998.95051455]
[1760131218848,1.43584242,3516.6,3505.1,0.4693]
[1760131219165,1.45306607,3516.5,3505.2,0.4693]
[1760131219464,5.22716621,3516.6,3505.1,0.4693]
[1760131219650,1.42036338,3516.4,3505.1,0.4693]
[1760131219979,1.49339725,3516.2,3505.0,995.22339047]
[1760131220144,5.22716621,3516.6,3505.0,995.04766276]
[1760131220458,5.22716621,3516.6,3505.1,0.41424254]
[1760131220649,5.22716621,3516.6,3505.1,0.38033233]
[1760131220827,5.4335709,3516.6,3505.0,996.27766276]
[1760131221024,0.24617742,3516.5,3505.0,996.27766276]
[1760131221259,5.22716621,3516.6,3505.0,995.83381609]
[1760131221631,0.21621851,3516.5,3505.0,997.06381609]
[1760131222232,0.21621851,3516.5,3505.0,995.06021131]
[1760131222468,1.42036338,3516.4,3505.0,995.06021131]
[1760131222630,1.49339725,3516.2,3505.1,0.14599768]
[1760131222834,1.75346962,3516.1,3505.0,994.75182663]
[1760131223062,0.01,3516.0,3505.1,0.17785907]
[1760131223232,0.32457545,3515.9,3505.0,990.88574867]
[1760131223468,1.4041034,3515.8,3505.0,989.11181318]
[1760131223668,0.29411403,3515.7,3505.0,988.06017793]
[1760131224007,1.4133159,3515.6,3505.0,988.06017793]
[1760131224203,0.13930869,3516.4,3505.0,987.74702583]
[1760131224204,1.71197423,3516.3,3505.0,987.74702583]
[1760131224402,1.47407217,3515.4,3505.0,988.34554863]
[1760131224602,1.49144004,3515.2,3505.0,986.70954796]
[1760131224831,0.21694939,3515.1,3505.0,985.47226688]
[1760131225109,1.47933633,3515.0,3505.0,984.23557573]
[1760131225308,0.13930869,3516.4,3515.0,0.34993609]
[1760131225309,1.42194901,3516.3,3515.0,0.34993609]
[1760131225470,0.13930869,3516.4,3505.2,0.12534148]
[1760131225471,1.42506019,3516.1,3505.2,0.12534148]
[1760131225672,1.42506019,3516.1,3505.3,0.12275239]
[1760131225922,1.42623534,3515.9,3505.0,983.12759378]
[1760131226214,2.10230741,3515.8,3505.0,981.42372985]
[1760131226427,2.10230741,3515.8,3505.0,980.51702499]
[1760131226428,1.4321168,3515.5,3505.0,980.51702499]
[1760131226629,4.842,3505.1,3505.0,980.51702499]
[1760131226777,1.4663582,3515.9,3505.1,0.28042525]
[1760131227111,1.46469419,3516.5,3505.1,0.07990762]
[1760131227284,1.46469419,3516.5,3505.2,0.29640097]
[1760131227486,1.55301211,3515.8,3505.0,981.31050583]
[1760131227699,1.44463045,3516.5,3505.0,980.87276757]
[1760131227878,5.22716621,3516.6,3505.0,980.0306938]
[1760131227879,1.49659688,3516.3,3505.0,980.0306938]
[1760131228073,0.4404,3516.2,3505.0,979.97220648]
[1760131228287,1.48480148,3516.0,3505.0,981.1659365]
[1760131228487,0.447,3516.2,3505.0,962.37299526]
[1760131228905,5.22716621,3516.6,3505.0,962.01573058]
[1760131229113,1.42805526,3516.5,3505.0,960.10251658]
[1760131229274,1.42805526,3516.5,3505.0,959.50976658]
[1760131229696,1.941,3516.4,3505.1,1.1941189]
[1760131230103,5.22716621,3516.6,3505.0,958.04175077]
[1760131230272,5.22716621,3516.6,3505.1,0.37808333]
[1760131230475,1.42805526,3516.5,3505.1,0.05284161]
[1760131230782,1.43005289,3516.5,3505.1,0.99071622]
[1760131230971,1.43005289,3516.5,3505.2,0.2484988]
[1760131231177,1.40729595,3516.3,3505.2,0.2484988]
[1760131231499,1.43582534,3516.5,3505.2,0.90524986]
[1760131231673,1.43921747,3516.5,3505.2,0.90524986]
[1760131231879,1.49489503,3516.5,3505.0,953.72865204]
[1760131232178,3.92190397,3516.6,3505.1,0.59768215]
[1760131232375,3.16708218,3516.6,3505.0,954.55633419]
[1760131232609,2.6441263,3516.6,3505.0,954.32730884]
[1760131232821,2.6441263,3516.6,3505.1,0.58945996]
[1760131232822,1.40462494,3516.6,3505.1,0.58945996]
[1760131233022,1.04505354,3516.6,3505.1,0.58945996]
[1760131233320,0.55607333,3516.6,3505.0,954.32730884]
[1760131233484,0.55607333,3516.6,3505.0,955.55730884]
[1760131233906,1.41048187,3516.5,3505.0,955.55730884]
[1760131234086,2.28240887,3516.5,3505.0,955.55730884]
[1760131234476,2.28240887,3516.5,3505.0,952.63907059]
[1760131234712,2.28240887,3516.5,3505.0,952.63478059]
[1760131234904,1.46116566,3516.4,3505.0,953.47351285]
[1760131235093,2.01723899,3516.4,3505.0,953.47351285]
[1760131235301,1.42250969,3516.3,3505.0,953.47351285]
[1760131235498,1.97858302,3516.3,3505.0,953.47351285]
[1760131235699,1.45726562,3516.2,3505.1,0.39197203]
[1760131236022,1.97580175,3516.2,3505.0,953.46651285]
[1760131236320,0.55607333,3516.2,3505.0,954.69651285]
[1760131236481,1.44006887,3528.8,3505.1,0.76426771]
[1760131236913,11.74998404,3525.2,3505.1,0.76426771]
[1760131237081,13.2088748,3525.2,3505.0,954.69651285]
[1760131237282,1.49046321,3525.1,3505.1,0.61862725]
[1760131237616,11.74998404,3525.2,3505.1,1.23]
[1760131237785,1.44244525,3525.1,3505.1,0.73]
[1760131238179,0.85654205,3525.0,3505.2,0.41044999]
[1760131238420,0.99511624,3525.0,3505.1,0.73]
[1760131238621,0.13857419,3525.0,3505.2,0.66753143]
[1760131238822,0.24446528,3524.9,3505.1,0.73]
[1760131239125,0.13857419,3525.0,3505.2,1.35157686]
[1760131239299,0.13791479,3524.9,3505.1,1.96]
[1760131239498,11.08961395,3525.2,3505.3,0.85421047]
[1760131240114,11.08961395,3525.2,3505.4,0.18758495]
[1760131240317,11.08961395,3525.2,3505.4,0.40065165]
[1760131240514,1.44244525,3525.1,3505.4,0.40065165]
[1760131240732,11.08961395,3525.2,3505.4,0.40065165]
[1760131240733,6.90926723,3525.2,3505.5,0.85589203]
[1760131240895,0.1381834,3525.1,3505.5,0.85589203]
[1760131241096,0.1381834,3525.1,3505.6,0.84389871]
[1760131241309,6.90926723,3525.2,3525.1,0.00815073]
[1760131241636,6.90926723,3525.2,3505.6,1.44529272]
[1760131241834,11.89056577,3525.2,3505.6,2.0553526]
[1760131242146,10.94109983,3525.2,3505.7,1.43991473]
[1760131242425,9.28547286,3525.2,3505.8,0.25773934]
[1760131242739,1.45332675,3541.8,3516.0,1.48871145]
[1760131242918,2.419,3547.5,3505.9,8.97199572]
[1760131242919,0.13728083,3534.7,3516.1,0.24072436]
[1760131243096,1.45927687,3543.1,3516.2,1.43531021]
[1760131243297,1.45927687,3543.1,3516.1,0.35826553]
[1760131243298,1.43198761,3541.8,3516.4,1.40605349]
[1760131243498,0.85281785,3534.6,3516.5,0.93742511]
[1760131243694,5.6672,3534.6,3516.6,1.73137095]
[1760131244037,1.133,3541.7,3539.9,1.13542732]
[1760131244202,1.133,3541.7,3516.6,0.24216617]
[1760131244203,4.01717288,3534.6,3514.1,0.99999999]
[1760131244402,0.0971564,3534.3,3514.2,1.39731382]
[1760131244597,3.23230231,3534.3,3514.3,1.40838796]
[1760131244828,3.23230231,3534.3,3514.4,1.11282854]
[1760131244994,1.48556901,3558.5,3535.6,1.44509547]
[1760131245195,1.48556901,3558.5,3514.4,0.62813536]
[1760131245196,1.41647189,3568.6,3540.8,0.57694225]
[1760131245547,1.48990179,3540.8,3530.7,0.11358043]
[1760131245722,5.4486563,3540.8,3540.7,2.411]
[1760131246033,1.4729965,3586.4,3556.8,0.99999999]
[1760131246232,0.99552309,3582.0,3557.7,2.41]
[1760131246437,0.86593753,3582.1,3557.8,1.83339737]
[1760131246638,2.41,3557.9,3557.1,0.21674688]
[1760131246932,2.408,3580.3,3558.7,0.15695953]
[1760131247096,2.407,3579.5,3561.6,0.43994429]
[1760131247292,2.407,3572.9,3541.2,2.407]
[1760131247496,2.407,3546.6,3541.3,0.6057589]
[1760131247698,2.407,3546.6,3520.0,3.21542]
[1760131247699,2.405,3542.9,3520.0,3.21542]
[1760131247894,2.405,3534.7,3514.2,1.45969427]
[1760131248124,2.405,3534.7,3493.0,0.15]
[1760131248125,5.6577,3542.9,3505.2,1.49113813]
[1760131248301,2.85577916,3534.7,3514.3,0.27712114]
[1760131248503,2.58263679,3534.7,3514.3,0.1421036]
[1760131248704,0.00743,3554.6,3514.4,0.51634983]
[1760131248895,0.20096,3554.0,3514.5,0.1421036]
[1760131249094,1.03138417,3553.9,3514.6,0.05685469]
[1760131249302,5.85946,3554.0,3514.8,1.42701401]
[1760131249496,0.16583484,3553.9,3514.9,0.1895927]
[1760131249819,1.23981358,3553.9,3515.0,1.40868804]
[1760131250020,1.23981358,3553.9,3515.2,1.42424076]
[1760131250214,1.23981358,3553.9,3515.1,0.1773389]
[1760131250215,5.6584,3553.9,3516.7,1.41470205]
[1760131250411,2.395,3528.9,3516.8,0.39567596]
[1760131250731,3.92537151,3528.9,3516.9,0.0063]
[1760131250920,3.51983385,3528.9,3516.9,0.19512938]
[1760131251235,3.1947073,3528.9,3517.0,1.07265589]
[1760131251440,3.1947073,3528.9,3481.0,0.00589602]
[1760131251441,3.1947073,3528.9,3517.1,0.31785127]
[1760131251607,0.35928781,3528.9,3517.2,0.0063]
[1760131251996,5.79663442,3528.9,3517.2,0.0063]
[1760131252197,1.0,3523.3,3517.2,0.0063]
[1760131252432,5.79663442,3528.9,3514.1,3.69]
[1760131252607,5.79663442,3528.9,3517.3,0.85262516]
[1760131252813,5.79663442,3528.9,3516.0,0.34106779]
[1760131253037,0.28726331,3528.8,3514.1,4.92]
[1760131253201,6.03461533,3528.8,3514.1,4.92]
[1760131253400,0.4584,3528.7,3514.2,1.07725894]
[1760131253619,0.57750988,3528.6,3514.1,4.92]
[1760131253810,0.27937688,3528.5,3514.1,4.92]
[1760131254017,0.78683006,3528.4,3514.1,4.92]
[1760131254225,1.06381009,3528.4,3514.1,4.92]
[1760131254423,1.06381009,3528.4,3514.1,6.15]
[1760131254424,0.32843006,3528.4,3514.1,6.15]
[1760131254611,0.15918006,3528.3,3514.2,0.82110808]
[1760131254830,1.0,3521.6,3514.2,0.37458186]
[1760131255138,1.0,3521.6,3514.1,6.15]
[1760131255139,5.3061206,3521.6,3514.1,6.15]
[1760131255336,5.3061206,3521.6,3514.2,0.38331032]
[1760131255535,0.23776594,3521.5,3514.2,0.37744358]
[1760131255723,4.97436174,3521.6,3514.3,0.29872708]
[1760131256041,4.47877021,3521.6,3514.3,0.29872708]
[1760131256212,4.31303057,3521.6,3514.3,0.85297061]
[1760131256416,4.31303057,3521.6,3514.2,1.23]
[1760131256648,4.0798041,3521.6,3514.2,1.23]
[1760131256850,3.86357951,3521.6,3514.2,1.23]
[1760131257140,3.58887955,3521.6,3514.2,2.46]
[1760131257353,0.66251863,3521.5,3514.2,2.46]
[1760131257643,0.66251863,3521.5,3514.2,2.04943908]
[1760131257644,0.2475396,3521.5,3514.2,2.04943908]
[1760131257821,0.2475396,3521.5,3514.2,1.21119893]
[1760131257822,0.49811921,3521.5,3514.2,1.21119893]
[1760131258021,3.58887955,3521.6,3514.2,1.21119893]
[1760131258220,0.56062985,3521.4,3514.2,1.21119893]
[1760131258428,1.0,3518.4,3514.2,2.44119893]
[1760131258642,0.46044031,3519.9,3514.2,2.44119893]
[1760131258951,0.48556666,3518.3,3514.2,2.44119893]
[1760131259152,0.21961298,3519.7,3514.2,2.44119893]
[1760131259721,3.58887955,3521.6,3514.2,3.67119893]
[1760131259917,0.85653471,3520.9,3514.2,3.67119893]
[1760131260114,11.39,3625.2,3514.2,3.67119893]
[1760131260115,0.33533504,3544.2,3514.2,3.67119893]
[1760131260314,0.59406385,3544.6,3520.8,0.123]
[1760131260544,0.183,3573.2,3522.9,4.595]
[1760131260545,2.389,3555.5,3522.9,4.595]
[1760131260743,4.595,3554.5,3548.6,4.595]
[1760131260955,4.595,3549.8,3548.7,4.77799999]
[1760131261358,3.195,3554.4,3548.7,4.77799999]
[1760131261660,4.365,3554.3,3548.7,4.55829018]
[1760131261822,0.8441383,3573.9,3548.6,1.23]
[1760131262026,0.96318184,3574.5,3548.6,1.23]
[1760131262257,0.96149011,3567.6,3548.7,0.77099046]
[1760131262462,1.12135597,3567.7,3548.7,0.77099046]
[1760131262619,1.46318184,3574.5,3554.6,0.00743]
[1760131262819,0.08373675,3582.1,3580.1,1.92]
[1760131263050,0.08373675,3582.1,3554.7,1.22889625]
[1760131263051,0.50360518,3575.7,3558.6,3.06935]
[1760131263321,1.03996303,3582.0,3537.2,3.08792]
[1760131263322,1.40602922,3575.5,3537.2,3.08792]
[1760131263550,0.42087928,3575.4,3548.6,2.2328301]
[1760131263733,1.29835294,3575.4,3548.6,3.4628301]
[1760131263930,1.29835294,3575.4,3548.6,2.58521276]
[1760131263931,1.43455167,3575.2,3548.6,2.58521276]
[1760131264155,0.43132397,3575.3,3548.6,2.58521276]
[1760131264156,1.43884877,3575.1,3548.6,2.58521276]
[1760131264460,0.22384967,3555.6,3527.4,0.38238363]
[1760131264631,0.15944008,3575.0,3527.4,1.61166378]
[1760131264950,0.2484335,3574.9,3527.5,0.59768796]
[1760131265155,0.22384967,3570.0,3527.6,0.53726343]
[1760131265360,0.21599883,3569.9,3527.7,1.04653781]
[1760131265525,0.2534458,3569.9,3527.8,0.97123399]
[1760131265724,0.22384967,3572.5,3527.9,2.54366993]
[1760131265956,0.40079897,3572.4,3528.1,1.31251854]
[1760131266130,0.40079897,3572.4,3528.2,1.04468124]
[1760131266447,0.40079897,3572.4,3540.9,0.77615032]
[1760131266448,0.11358043,3572.3,3540.9,0.77615032]
[1760131266648,0.35093261,3572.2,3540.9,0.77615032]
[1760131266850,0.04756838,3572.1,3541.0,1.58002779]
[1760131267152,0.14698657,3572.0,3541.1,0.3530203]
[1760131267329,0.84478842,3572.4,3541.2,0.42571766]
[1760131267330,0.014281,3547.9,3541.2,0.42571766]
[1760131267519,0.018565,3554.9,3541.3,0.78667639]
[1760131267719,0.024134,3562.0,3543.5,4.581]
[1760131267921,0.024134,3562.0,3560.8,0.77615032]
[1760131268135,0.11358043,3577.2,3573.6,0.77615032]
[1760131268428,1.39200919,3605.6,3577.1,6.96]
[1760131268647,1.39200919,3605.6,3590.7,0.20723151]
[1760131268648,0.18587665,3595.9,3590.7,0.20723151]
[1760131268854,1.32689854,3605.1,3590.7,0.20723151]
[1760131269079,1.36991394,3609.9,3580.3,0.11358043]
[1760131269247,1.36991394,3609.9,3589.3,1.36733541]
[1760131269672,1.36991394,3609.9,3580.4,0.42362584]
[1760131269979,1.37764476,3613.6,3580.5,0.58526866]
[1760131270279,0.02101097,3609.4,3580.6,0.96397544]
[1760131270472,1.37764476,3613.6,3580.6,0.96397544]
[1760131270473,1.37764476,3613.6,3580.7,2.08155555]
[1760131270677,1.37764476,3613.6,3580.9,1.92]
[1760131270841,1.92,3625.9,3612.3,0.004]
[1760131271041,1.35537725,3618.1,3601.5,0.00399]
[1760131271242,1.35537725,3618.1,3590.7,1.92]
[1760131271243,1.35537725,3618.1,3601.6,0.62061165]
[1760131271473,1.35537725,3618.1,3601.6,0.30989728]
[1760131271675,1.92,3625.9,3590.9,0.22089621]
[1760131271840,1.92,3625.9,3589.6,0.20039088]
[1760131272168,0.11044338,3643.8,3588.3,0.14635058]
[1760131272169,1.31109589,3623.4,3588.3,0.14635058]
[1760131272341,1.31109589,3623.4,3576.5,0.14036]
[1760131272342,1.34752566,3623.3,3589.4,0.08518498]
[1760131272539,0.62452377,3623.2,3589.4,0.1194961]
[1760131272739,1.3940358,3623.0,3589.3,1.23]
[1760131273048,0.13530197,3623.3,3589.3,1.23]
[1760131273250,1.36243824,3623.2,3589.4,0.21156492]
[1760131273441,1.36243824,3623.2,3589.5,0.217]
[1760131273638,0.13530197,3623.3,3589.5,0.217]
[1760131273639,1.3940358,3623.0,3589.5,0.217]
[1760131273983,0.13530197,3623.3,3589.5,0.217]
[1760131273984,1.0,3622.5,3589.5,0.23405735]
[1760131274280,1.32282349,3622.3,3589.3,2.46]
[1760131274481,1.31750159,3617.7,3594.9,1.92]
[1760131274654,1.0,3619.3,3591.3,2.497]
[1760131274853,0.23828821,3617.7,3591.3,2.497]
[1760131275153,1.51991247,3623.2,3591.4,1.92]
[1760131275352,1.31752829,3617.5,3591.4,2.15846678]
[1760131275677,1.31752829,3617.5,3591.3,3.727]
[1760131275678,2.361,3613.7,3592.8,4.541]
[1760131275880,0.61486026,3617.4,3595.6,4.539]
[1760131276087,1.43,3617.5,3591.6,1.92]
[1760131276088,0.30400441,3615.1,3596.5,1.32336483]
[1760131276251,0.30400441,3615.1,3592.3,0.38072461]
[1760131276252,1.43,3617.5,3597.4,1.92]
[1760131276455,3.25222808,3617.8,3591.5,1.32748828]
[1760131276654,1.46895294,3617.7,3597.5,0.80609248]
[1760131276853,1.0,3615.5,3596.6,0.77678605]
[1760131277154,0.21366458,3615.4,3596.4,1.23]
[1760131277500,1.92,3617.8,3596.4,0.97853127]
[1760131277705,1.3452259,3615.2,3596.4,0.97853127]
[1760131277849,0.42409159,3615.1,3596.4,0.97853127]
[1760131278051,0.11358043,3615.0,3596.4,2.20853127]
[1760131278282,0.40401846,3615.0,3596.4,1.88395815]
[1760131278468,0.18524479,3614.9,3596.4,1.88395815]
[1760131278670,0.1260908,3614.8,3596.4,1.88395815]
[1760131278880,0.40319673,3614.7,3596.4,1.88395815]
[1760131279192,0.34696173,3614.6,3591.3,0.43660729]
[1760131279486,0.24286429,3614.5,3591.3,0.43660729]
[1760131279676,0.19645656,3614.4,3591.4,0.37398334]
[1760131279874,0.23055497,3614.3,3591.3,1.66660729]
[1760131280066,0.45663179,3614.2,3591.3,1.66660729]
[1760131280271,0.30206776,3614.1,3591.3,1.66660729]
[1760131280558,5.5513,3614.1,3591.3,1.5442899]
[1760131280758,0.11358043,3614.0,3591.3,1.5442899]
[1760131280953,0.11358043,3614.0,3591.3,2.66158828]
[1760131281153,5.5513,3614.1,3591.4,0.34681233]
[1760131281353,0.0277,3610.0,3591.4,0.34681233]
[1760131281590,0.0277,3610.0,3591.5,0.61052038]
[1760131281591,1.4577,3610.0,3591.5,0.61052038]
[1760131281767,1.4577,3610.0,3591.6,0.258054]
[1760131282089,7.009,3610.0,3591.6,0.258054]
[1760131282289,7.009,3610.0,3591.3,2.66158828]
[1760131282491,7.009,3610.0,3591.6,1.23]
[1760131282694,0.74712213,3609.9,3591.6,1.23]
[1760131282891,6.07608601,3609.9,3591.6,1.23]
[1760131283188,1.0,3591.7,3591.6,0.43436715]
[1760131283393,8.9813,3591.7,3591.6,0.26328305]
[1760131283625,8.9813,3591.7,3591.3,0.12072288]
[1760131283626,6.9813,3591.7,3591.3,0.12072288]
[1760131283812,6.9813,3591.7,3584.1,0.0015]
[1760131284125,6.9813,3591.7,3582.1,0.0015]
[1760131284328,6.9813,3591.7,3574.9,0.0015]
[1760131284482,6.9813,3591.7,3567.8,0.14405]
[1760131284483,0.10506572,3591.6,3580.7,0.62180723]
[1760131284682,6.9813,3591.7,3580.8,0.24120551]
[1760131284923,6.9813,3591.7,3580.9,0.29673152]
[1760131285124,4.20546146,3591.7,3580.9,0.29673152]
[1760131285282,0.15786464,3591.6,3581.0,0.58532795]
[1760131285482,0.1963851,3609.9,3591.9,0.99194129]
[1760131285683,0.51798993,3609.9,3584.7,0.0015]
[1760131286008,0.43952024,3609.8,3584.8,0.3916364]
[1760131286214,1.56300645,3609.7,3584.9,0.35545537]
[1760131286401,1.35486582,3609.5,3584.8,1.23]
[1760131286586,0.46125885,3609.4,3585.0,0.42383412]
[1760131286789,1.0,3599.9,3585.1,0.58793637]
[1760131287019,5.5597,3599.9,3585.2,5.289]
[1760131287228,5.5597,3599.9,3585.2,5.66252922]
[1760131287429,5.5597,3599.9,3586.5,4.519]
[1760131287630,5.5597,3599.9,3591.3,0.001]
[1760131287945,5.5597,3609.9,3600.3,1.01939417]
[1760131288093,5.5597,3609.9,3593.1,0.00149]
[1760131288283,5.5597,3609.9,3599.0,0.58627135]
[1760131288483,5.5597,3609.9,3593.2,0.25400108]
[1760131288484,5.5597,3609.9,3593.6,0.35]
[1760131288684,5.5597,3609.9,3599.1,0.26770933]
[1760131288914,0.90283644,3609.8,3599.2,0.18111213]
[1760131289122,5.5597,3609.9,3599.3,0.2709975]
[1760131289284,5.5597,3609.9,3599.4,0.134475]
[1760131289494,5.5597,3609.9,3599.3,0.1129975]
[1760131289495,5.5597,3609.9,3599.3,0.29201438]
[1760131289689,4.60466703,3609.9,3599.4,0.34206772]
[1760131289920,0.13053746,3609.8,3599.4,0.21118587]
[1760131290086,0.13053746,3609.8,3599.3,0.29201438]
[1760131290294,4.60466703,3609.9,3599.1,1.10796488]
[1760131290507,4.60466703,3609.9,3599.1,2.33796488]
[1760131290686,4.60466703,3609.9,3599.2,0.43594813]
[1760131290884,0.1637091,3609.8,3599.2,0.21356109]
[1760131291188,4.60466703,3609.9,3599.1,2.19547979]
[1760131291189,2.45758043,3609.7,3599.1,2.19547979]
[1760131291412,0.11358043,3609.7,3599.1,1.84788303]
[1760131291607,0.35084772,3609.6,3599.1,1.63768205]
[1760131291891,5.5488,3609.7,3599.2,0.32061706]
[1760131292323,5.5488,3609.7,3599.1,2.57302105]
[1760131292324,0.30294234,3609.6,3599.1,2.57302105]
[1760131292586,0.60664892,3609.5,3599.2,0.57510962]
[1760131292903,0.27088707,3609.4,3599.3,0.88412111]
[1760131293110,1.30466473,3609.3,3599.1,3.02667794]
[1760131293293,0.2800549,3609.2,3599.1,3.02667794]
[1760131293497,5.8263549,3609.2,3599.1,3.02667794]
[1760131293697,5.82968823,3609.2,3599.2,0.33188618]
[1760131294022,5.5488,3609.2,3599.1,2.2425875]
[1760131294197,5.5488,3609.2,3599.2,0.34904545]
[1760131294516,5.5488,3609.2,3599.3,0.32670328]
[1760131294716,5.5488,3609.2,3599.4,0.42499825]
[1760131294717,3.97758265,3609.2,3599.4,0.42499825]